fUST/lending_fUST_20240914
["ID","MTS","AMOUNT","RATE_DAILY","PERIOD"]
[338142619,1726299473939,-500.0,0.00028821,120]
[338142620,1726299473979,-500.0,0.00028821,120]
[338142621,1726299474016,-500.0,0.00028821,120]
[338142622,1726299474054,-500.0,0.00028821,120]
[338142623,1726299474092,-500.0,0.00028821,120]
[338142624,1726299474127,-500.0,0.00028821,120]
[338142625,1726299474163,-500.0,0.00028821,120]
[338142626,1726299474198,-500.0,0.00028821,120]
[338142627,1726299474235,-500.0,0.00028821,120]
[338142628,1726299474272,-500.0,0.00028821,120]
[338142629,1726299474311,-500.0,0.00029095,120]
[338142630,1726299474348,-500.0,0.00029095,120]
[338142631,1726299474382,-500.0,0.00029095,120]
[338142632,1726299474416,-500.0,0.00029095,120]
[338142633,1726299474451,-500.0,0.00029095,120]
[338142634,1726299474486,-500.0,0.00029095,30]
[338142635,1726299474520,-500.0,0.00029095,120]
[338142636,1726299474555,-500.0,0.00029095,120]
[338142637,1726299474588,-500.0,0.00029095,120]
[338142638,1726299474624,-500.0,0.00029095,120]
[338142639,1726299474659,-500.0,0.00029095,120]
[338142640,1726299474695,-500.0,0.00029095,120]
[338142641,1726299474733,-500.0,0.00029095,120]
[338142642,1726299474769,-540.29,0.00029095,120]
[338142643,1726299474807,-500.0,0.00029095,120]
[338142644,1726299474844,-500.0,0.00029095,120]
[338142645,1726299474879,-500.0,0.00029095,120]
[338142646,1726299474918,-500.0,0.00029095,120]
[338142647,1726299474956,-500.0,0.00029095,120]
[338142648,1726299474995,-1882.59,0.00029095,120]
[338142649,1726299475031,-500.0,0.00029095,120]
[338142650,1726299475067,-500.0,0.00029095,120]
[338142651,1726299475102,-500.0,0.00029095,120]
[338142652,1726299475139,-500.0,0.00029095,120]
[338142653,1726299475176,-500.0,0.00029095,120]
[338142654,1726299475212,-500.0,0.00029095,120]
[338142655,1726299475247,-1925.38,0.00029095,120]
[338142656,1726299475285,-2524.77,0.00029095,120]
[338142657,1726299475322,-411.48,0.00029095,120]
[338142658,1726299475360,-439.16,0.00029095,120]
[338142659,1726299475396,-500.0,0.00029095,120]
[338142660,1726299475431,-500.0,0.00029095,120]
[338142661,1726299475470,-500.0,0.00029095,120]
[338142662,1726299475507,-500.0,0.00029095,120]
[338142663,1726299475667,-500.0,0.00029095,120]
[338142664,1726299475708,-500.0,0.00029095,120]
[338142665,1726299475747,-500.0,0.00029095,120]
[338142666,1726299475788,-500.0,0.00029095,120]
[338142667,1726299475825,-500.0,0.00029095,120]
[338142668,1726299475862,-202.5,0.00029095,120]
[338142669,1726299475900,-500.0,0.00029095,120]
[338142670,1726299475940,-500.0,0.00029095,120]
[338142671,1726299475983,-500.0,0.00029095,120]
[338142672,1726299476021,-508.36,0.00029095,120]
[338142673,1726299476060,-2511.51,0.00029095,120]
[338142674,1726299476095,-500.0,0.00029095,120]
[338142675,1726299476130,-500.0,0.00029095,120]
[338142676,1726299476167,-182.64,0.00029095,120]
[338142677,1726299476204,-254.73369728,0.00029095,120]
[338142678,1726299476242,-500.0,0.00029095,120]
[338142679,1726299476278,-1600.24,0.00029095,120]
[338142680,1726299476313,-580.66,0.00029095,120]
[338142681,1726299476349,-500.0,0.00029095,120]
[338142682,1726299476384,-500.0,0.00029095,120]
[338142683,1726299476420,-189.3331021,0.00029095,30]
[338142684,1726299476455,-500.0,0.00029095,120]
[338142685,1726299476490,-500.0,0.00029095,120]
[338142686,1726299476526,-500.0,0.00029095,120]
[338142687,1726299476561,-500.0,0.00029095,120]
[338142688,1726299476597,-500.0,0.00029095,120]
[338142689,1726299476632,-500.0,0.00029095,120]
[338142690,1726299476668,-500.0,0.00029095,120]
[338142691,1726299476704,-467.64,0.00029095,120]
[338142692,1726299476739,-500.0,0.00029095,120]
[338142693,1726299476774,-500.0,0.00029095,120]
[338142694,1726299476808,-500.0,0.00029095,120]
[338142695,1726299476845,-500.0,0.00029095,120]
[338142696,1726299476881,-361.18818233,0.00029095,120]
[338142697,1726299476918,-649.00728006,0.00029095,120]
[338142698,1726299476954,-500.0,0.00029095,120]
[338142699,1726299476991,-500.0,0.00029095,120]
[338142700,1726299477027,-422.6,0.00029095,120]
[338142701,1726299477062,-608.25599024,0.00029369,120]
[338142702,1726299477095,-500.0,0.00029369,120]
[338142703,1726299477129,-503.03568579,0.00029369,120]
[338142704,1726299477162,-500.0,0.00029369,120]
[338142705,1726299477197,-500.0,0.00029369,30]
[338142706,1726299477231,-500.0,0.00029369,120]
[338142707,1726299477265,-393.72,0.00029369,120]
[338142708,1726299477299,-500.0,0.00029369,120]
[338142709,1726299477332,-500.0,0.00029369,120]
[338142710,1726299477372,-600.28,0.00029369,120]
[338142711,1726299477406,-500.0,0.00029369,120]
[338142712,1726299477440,-500.0,0.00029369,120]
[338142713,1726299477477,-500.0,0.00029369,120]
[338142714,1726299477514,-500.0,0.00029369,120]
[338142715,1726299477549,-500.0,0.00029369,120]
[338142716,1726299477585,-500.0,0.00029369,120]
[338142717,1726299477620,-1882.59,0.00029369,120]
[338142718,1726299477654,-500.0,0.00029369,120]
[338142719,1726299477690,-500.0,0.00029369,120]
[338142720,1726299477725,-500.0,0.00029369,120]
[338142721,1726299477759,-500.0,0.00029369,120]
[338142722,1726299477793,-561.36,0.00029369,120]
[338142723,1726299477826,-500.0,0.00029369,120]
[338142724,1726299477858,-1925.38,0.00029369,120]
[338142725,1726299477892,-2524.77,0.00029369,120]
[338142726,1726299477926,-500.0,0.00029369,120]
[338142727,1726299477960,-500.0,0.00029369,120]
[338142728,1726299477998,-500.0,0.00029369,120]
[338142729,1726299478034,-500.0,0.00029369,120]
[338142730,1726299478071,-500.0,0.00029369,120]
[338142731,1726299478105,-500.0,0.00029369,120]
[338142732,1726299478140,-500.0,0.00029369,120]
[338142733,1726299478176,-632.45,0.00029369,120]
[338142734,1726299478209,-500.0,0.00029369,120]
[338142735,1726299478243,-500.0,0.00029369,120]
[338142736,1726299478278,-500.0,0.00029369,120]
[338142737,1726299478313,-2511.51,0.00029369,120]
[338142738,1726299478348,-500.0,0.00029369,120]
[338142739,1726299478383,-500.0,0.00029369,120]
[338142740,1726299478419,-1600.24,0.00029369,120]
[338142741,1726299478455,-580.66,0.00029369,120]
[338142742,1726299478493,-500.0,0.00029369,120]
[338142743,1726299478528,-500.0,0.00029369,120]
[338142744,1726299478564,-500.0,0.00029369,120]
[338142745,1726299478600,-500.0,0.00029369,120]
[338142746,1726299478637,-456.67,0.00029369,120]
[338142747,1726299478674,-260.5,0.00029369,120]
[338142748,1726299478712,-500.0,0.00029369,120]
[338142749,1726299478747,-500.0,0.00029369,120]
[338142750,1726299478782,-500.0,0.00029369,120]
[338142751,1726299478816,-591.9,0.00029369,120]
[338142752,1726299478852,-500.0,0.00029369,120]
[338142753,1726299478886,-200.30385696,0.00029369,120]
[338142754,1726299478925,-500.0,0.00029643,120]
[338142755,1726299478961,-500.0,0.00029643,30]
[338142756,1726299478997,-500.0,0.00029643,120]
[338142757,1726299479033,-500.0,0.00029643,120]
[338142758,1726299479070,-190.88,0.00029643,120]
[338142759,1726299479108,-525.63,0.00029643,120]
[338142760,1726299479145,-500.0,0.00029643,120]
[338142761,1726299479179,-500.0,0.00029643,120]
[338142762,1726299479213,-500.0,0.00029643,120]
[338142763,1726299479252,-500.0,0.00029643,120]
[338142764,1726299479292,-1882.59,0.00029643,120]
[338142765,1726299479329,-500.0,0.00029643,120]
[338142766,1726299479364,-500.0,0.00029643,120]
[338142767,1726299479528,-500.0,0.00029643,120]
[338142768,1726299479568,-500.0,0.00029643,120]
[338142769,1726299479606,-500.79,0.00029643,120]
[338142770,1726299479645,-1925.38,0.00029643,120]
[338142771,1726299479684,-2524.77,0.00029643,120]
[338142772,1726299479722,-500.0,0.00029643,120]
[338142773,1726299479760,-500.0,0.00029643,120]
[338142774,1726299479798,-500.0,0.00029643,120]
[338142775,1726299479837,-500.0,0.00029643,120]
[338142776,1726299479876,-500.0,0.00029643,120]
[338142777,1726299479913,-500.0,0.00029643,120]
[338142778,1726299479951,-500.0,0.00029643,120]
[338142779,1726299479987,-500.0,0.00029643,120]
[338142780,1726299480023,-567.2,0.00029643,120]
[338142781,1726299480060,-500.0,0.00029643,120]
[338142782,1726299480099,-2511.51,0.00029643,120]
[338142783,1726299480137,-500.0,0.00029643,120]
[338142784,1726299480181,-500.0,0.00029643,120]
[338142785,1726299480221,-1600.24,0.00029643,120]
[338142786,1726299480260,-580.66,0.00029643,120]
[338142787,1726299480300,-500.0,0.00029643,120]
[338142788,1726299480336,-581.15,0.00029643,120]
[338142789,1726299480372,-500.0,0.00029643,120]
[338142790,1726299480410,-500.0,0.00029643,120]
[338142791,1726299480448,-500.0,0.00029643,120]
[338142792,1726299480485,-500.0,0.00029917,120]
[338142793,1726299480521,-500.0,0.00029917,30]
[338142794,1726299480561,-500.0,0.00029917,120]
[338142795,1726299480598,-500.0,0.00029917,120]
[338142796,1726299480636,-500.0,0.00029917,120]
[338142797,1726299480674,-500.0,0.00029917,120]
[338142798,1726299480712,-500.0,0.00029917,120]
[338142799,1726299480750,-500.0,0.00029917,120]
[338142800,1726299480787,-1882.59,0.00029917,120]
[338142801,1726299480827,-500.0,0.00029917,120]
[338142802,1726299480867,-572.86,0.00029917,120]
[338142803,1726299480905,-500.0,0.00029917,120]
[338142804,1726299480945,-648.25,0.00029917,120]
[338142805,1726299480986,-1925.38,0.00029917,120]
[338142806,1726299481026,-2524.77,0.00029917,120]
[338142807,1726299481066,-500.0,0.00029917,120]
[338142808,1726299481101,-500.0,0.00029917,120]
[338142809,1726299481136,-500.0,0.00029917,120]
[338142810,1726299481173,-500.0,0.00029917,120]
[338142811,1726299481212,-500.0,0.00029917,120]
[338142812,1726299481249,-500.0,0.00029917,120]
[338142813,1726299481287,-500.0,0.00029917,120]
[338142814,1726299481327,-500.0,0.00029917,120]
[338142815,1726299481369,-500.0,0.00029917,120]
[338142816,1726299481412,-2511.51,0.00029917,120]
[338142817,1726299481453,-500.0,0.00029917,120]
[338142818,1726299481495,-482.0,0.00029917,120]
[338142819,1726299481539,-1600.24,0.00029917,120]
[338142820,1726299481583,-580.66,0.00029917,120]
[338142821,1726299481632,-607.9,0.00029917,120]
[338142822,1726299481680,-500.0,0.00029917,120]
[338142823,1726299481724,-500.0,0.00029917,120]
[338142824,1726299481773,-500.0,0.00029917,120]
[338142825,1726299481824,-500.0,0.00030191,120]
[338142826,1726299481873,-500.0,0.00030191,30]
[338142827,1726299481923,-500.0,0.00030191,120]
[338142828,1726299481973,-423.76,0.00030191,120]
[338142829,1726299482021,-500.0,0.00030191,120]
[338142830,1726299482068,-500.0,0.00030191,120]
[338142831,1726299482116,-500.0,0.00030191,120]
[338142832,1726299482166,-500.0,0.00030191,120]
[338142833,1726299482213,-1882.59,0.00030191,120]
[338142834,1726299482256,-349.16,0.00030191,120]
[338142835,1726299482300,-500.0,0.00030191,120]
[338142836,1726299482345,-1925.38,0.00030191,120]
[338142837,1726299482391,-2524.77,0.00030191,120]
[338142838,1726299482433,-500.0,0.00030191,120]
[338142839,1726299482483,-500.0,0.00030191,120]
[338142840,1726299482535,-500.0,0.00030191,120]
[338142841,1726299482580,-500.0,0.00030191,120]
[338142842,1726299482623,-500.0,0.00030191,120]
[338142843,1726299482669,-500.0,0.00030191,120]
[338142844,1726299482720,-500.0,0.00030191,120]
[338142845,1726299482770,-500.0,0.00030191,120]
[338142846,1726299482816,-302.05,0.00030191,120]
[338142847,1726299482862,-2511.51,0.00030191,120]
[338142848,1726299482906,-152.12,0.00030191,120]
[338142849,1726299482949,-1600.24,0.00030191,120]
[338142850,1726299482996,-580.66,0.00030191,120]
[338142851,1726299483045,-317.32,0.00030191,120]
[338142852,1726299483088,-500.0,0.00030191,120]
[338142853,1726299483134,-500.0,0.00030191,120]
[338142854,1726299483178,-500.0,0.00030465,120]
[338142855,1726299483229,-500.0,0.00030465,30]
[338142856,1726299483283,-500.0,0.00030465,120]
[338142857,1726299483327,-500.0,0.00030465,120]
[338142858,1726299483374,-500.0,0.00030465,120]
[338142859,1726299483421,-500.0,0.00030465,120]
[338142860,1726299483468,-500.0,0.00030465,120]
[338142861,1726299483521,-1882.59,0.00030465,120]
[338142862,1726299483570,-500.0,0.00030465,120]
[338142863,1726299483620,-1925.38,0.00030465,120]
[338142864,1726299483670,-2524.77,0.00030465,120]
[338142865,1726299483717,-500.0,0.00030465,120]
[338142866,1726299483773,-562.79,0.00030465,120]
[338142867,1726299483823,-500.0,0.00030465,120]
[338142868,1726299483873,-463.72,0.00030465,120]
[338142869,1726299483923,-500.0,0.00030465,120]
[338142870,1726299483971,-628.19,0.00030465,120]
[338142871,1726299484021,-500.0,0.00030465,120]
[338142872,1726299484068,-500.0,0.00030465,120]
[338142873,1726299484116,-2511.51,0.00030465,120]
[338142874,1726299484325,-1600.24,0.00030465,120]
[338142875,1726299484376,-580.66,0.00030465,120]
[338142876,1726299484418,-500.0,0.00030465,120]
[338142877,1726299484461,-500.0,0.00030465,120]
[338142878,1726299484504,-500.0,0.00030739,120]
[338142879,1726299484549,-500.0,0.00030739,120]
[338142880,1726299484591,-500.0,0.00030739,120]
[338142881,1726299484634,-500.0,0.00030739,120]
[338142882,1726299484677,-500.0,0.00030739,120]
[338142883,1726299484720,-500.0,0.00030739,120]
[338142884,1726299484762,-1882.59,0.00030739,120]
[338142885,1726299484805,-500.0,0.00030739,120]
[338142886,1726299484849,-1925.38,0.00030739,120]
[338142887,1726299484892,-2524.77,0.00030739,120]
[338142888,1726299484936,-500.0,0.00030739,120]
[338142889,1726299484980,-500.0,0.00030739,120]
[338142890,1726299485024,-500.0,0.00030739,120]
[338142891,1726299485065,-500.0,0.00030739,120]
[338142892,1726299485106,-500.0,0.00030739,120]
[338142893,1726299485149,-2511.51,0.00030739,120]
[338142894,1726299485191,-1600.24,0.00030739,120]
[338142895,1726299485231,-580.66,0.00030739,120]
[338142896,1726299485273,-500.0,0.00030739,120]
[338142897,1726299485314,-500.0,0.00030739,120]
[338142898,1726299485354,-500.0,0.00031013,120]
[338142899,1726299485396,-500.0,0.00031013,120]
[338142900,1726299485435,-500.0,0.00031013,120]
[338142901,1726299485477,-244.18818235,0.00031013,120]
[338142902,1726299485518,-500.0,0.00031013,120]
[338142903,1726299485559,-500.0,0.00031013,120]
[338142904,1726299485600,-1882.59,0.00031013,120]
[338142905,1726299485643,-191.86,0.00031013,120]
[338142906,1726299485687,-1925.38,0.00031013,120]
[338142907,1726299485731,-2524.77,0.00031013,120]
[338142908,1726299485775,-500.0,0.00031013,120]
[338142909,1726299485819,-500.0,0.00031013,120]
[338142910,1726299485864,-500.0,0.00031013,120]
[338142911,1726299485905,-500.0,0.00031013,120]
[338142912,1726299485949,-500.0,0.00031013,120]
[338142913,1726299485994,-2511.51,0.00031013,120]
[338142914,1726299486037,-1600.24,0.00031013,120]
[338142915,1726299486082,-580.66,0.00031013,120]
[338142916,1726299486124,-500.0,0.00031013,120]
[338142917,1726299486169,-500.0,0.00031013,120]
[338142918,1726299486210,-500.0,0.00031287,120]
[338142919,1726299486252,-205.5044157,0.00031287,120]
[338142920,1726299486294,-500.0,0.00031287,120]
[338142921,1726299486335,-500.0,0.00031287,120]
[338142922,1726299486376,-500.0,0.00031287,120]
[338142923,1726299486417,-1882.59,0.00031287,120]
[338142924,1726299486460,-1925.38,0.00031287,120]
[338142925,1726299486503,-2524.77,0.00031287,120]
[338142926,1726299486545,-500.0,0.00031287,120]
[338142927,1726299486585,-500.0,0.00031287,120]
[338142928,1726299486626,-500.0,0.00031287,120]
[338142929,1726299486667,-500.0,0.00031287,120]
[338142930,1726299486713,-198.5,0.00031287,120]
[338142931,1726299486762,-2511.51,0.00031287,120]
[338142932,1726299486804,-1600.24,0.00031287,120]
[338142933,1726299486844,-580.66,0.00031287,120]
[338142934,1726299486884,-500.0,0.00031287,120]
[338142935,1726299486925,-500.0,0.00031287,120]
[338142936,1726299486965,-500.0,0.00031561,120]
[338142937,1726299487006,-500.0,0.00031561,120]
[338142938,1726299487046,-500.0,0.00031561,120]
[338142939,1726299487086,-522.1,0.00031561,120]
[338142940,1726299487125,-1882.59,0.00031561,120]
[338142941,1726299487167,-1925.38,0.00031561,120]
[338142942,1726299487209,-2524.77,0.00031561,120]
[338142943,1726299487248,-500.0,0.00031561,120]
[338142944,1726299487286,-500.0,0.00031561,120]
[338142945,1726299487327,-500.0,0.00031561,120]
[338142946,1726299487365,-373.38651893,0.00031561,120]
[338142947,1726299487402,-2511.51,0.00031561,120]
[338142948,1726299487443,-1600.24,0.00031561,120]
[338142949,1726299487491,-580.66,0.00031561,120]
[338142950,1726299487535,-500.0,0.00031561,120]
[338142951,1726299487581,-500.0,0.00031561,120]
[338142952,1726299487624,-291.9,0.00031835,120]
[338142953,1726299487666,-500.0,0.00031835,120]
[338142954,1726299487711,-505.2,0.00031835,120]
[338142955,1726299487757,-1882.59,0.00031835,120]
[338142956,1726299487800,-1925.38,0.00031835,120]
[338142957,1726299487842,-2524.77,0.00031835,120]
[338142958,1726299487883,-500.0,0.00031835,120]
[338142959,1726299487925,-500.0,0.00031835,120]
[338142960,1726299487968,-322.88,0.00031835,120]
[338142961,1726299488011,-2511.51,0.00031835,120]
[338142962,1726299488053,-1600.24,0.00031835,120]
[338142963,1726299488095,-580.66,0.00031835,120]
[338142964,1726299488135,-500.0,0.00031835,120]
[338142965,1726299488175,-500.0,0.00031835,120]
[338142966,1726299488218,-500.0,0.00032109,120]
[338142967,1726299488260,-1882.59,0.00032109,120]
[338142968,1726299488303,-1925.38,0.00032109,120]
[338142969,1726299488348,-2524.77,0.00032109,120]
[338142970,1726299488391,-500.0,0.00032109,120]
[338142971,1726299488433,-500.0,0.00032109,120]
[338142972,1726299488479,-2511.51,0.00032109,120]
[338142973,1726299488521,-1600.24,0.00032109,120]
[338142974,1726299488564,-580.66,0.00032109,120]
[338142975,1726299488720,-500.0,0.00032109,120]
[338142976,1726299488763,-338.14,0.00032109,120]
[338142977,1726299488804,-294.4,0.00032383,120]
[338142978,1726299488847,-1882.59,0.00032383,120]
[338142979,1726299488889,-1925.38,0.00032383,120]
[338142980,1726299488932,-2524.77,0.00032383,120]
[338142981,1726299488976,-500.0,0.00032383,120]
[338142982,1726299489019,-564.2,0.00032383,120]
[338142983,1726299489060,-2511.51,0.00032383,120]
[338142984,1726299489100,-1600.24,0.00032383,120]
[338142985,1726299489138,-580.66,0.00032383,120]
[338142986,1726299489176,-500.0,0.00032383,120]
[338142987,1726299489218,-1882.59,0.00032657,120]
[338142988,1726299489259,-1925.38,0.00032657,120]
[338142989,1726299489298,-2524.77,0.00032657,120]
[338142990,1726299489339,-500.0,0.00032657,120]
[338142991,1726299489378,-2511.51,0.00032657,120]
[338142992,1726299489418,-1600.24,0.00032657,120]
[338142993,1726299489461,-580.66,0.00032657,120]
[338142994,1726299489502,-500.0,0.00032657,120]
[338142995,1726299489542,-500.0,0.00032876,30]
[338142996,1726299489582,-1882.59,0.00032931,120]
[338142997,1726299489624,-1925.38,0.00032931,120]
[338142998,1726299489665,-2524.77,0.00032931,120]
[338142999,1726299489705,-500.0,0.00032931,120]
[338143000,1726299489747,-2511.51,0.00032931,120]
[338143001,1726299489787,-1600.24,0.00032931,120]
[338143002,1726299489825,-580.66,0.00032931,120]
[338143003,1726299489866,-328.5,0.00032931,120]
[338143004,1726299489908,-1882.59,0.00033205,120]
[338143005,1726299489952,-1925.38,0.00033205,120]
[338143006,1726299489995,-2524.77,0.00033205,120]
[338143007,1726299490036,-500.0,0.00033205,120]
[338143008,1726299490076,-2511.51,0.00033205,120]
[338143009,1726299490115,-1600.24,0.00033205,120]
[338143010,1726299490153,-580.66,0.00033205,120]
[338143011,1726299490192,-1882.59,0.00033479,120]
[338143012,1726299490232,-1925.38,0.00033479,120]
[338143013,1726299490276,-2524.77,0.00033479,120]
[338143014,1726299490314,-500.0,0.00033479,120]
[338143015,1726299490355,-2511.51,0.00033479,120]
[338143016,1726299490397,-1600.24,0.00033479,120]
[338143017,1726299490436,-580.66,0.00033479,120]
[338143018,1726299490477,-1882.59,0.00033753,120]
[338143019,1726299490522,-1925.38,0.00033753,120]
[338143020,1726299490564,-2524.77,0.00033753,120]
[338143021,1726299490606,-464.47705047,0.00033753,120]
[338143022,1726299490653,-2511.51,0.00033753,120]
[338143023,1726299490696,-1600.24,0.00033753,120]
[338143024,1726299490736,-580.66,0.00033753,120]
[338143025,1726299490781,-150.0,0.00034,120]
[338143026,1726299490829,-1882.59,0.00034027,120]
[338143027,1726299490878,-1925.38,0.00034027,120]
[338143028,1726299490924,-2524.77,0.00034027,120]
[338143029,1726299490972,-2511.51,0.00034027,120]
[338143030,1726299491023,-1600.24,0.00034027,120]
[338143031,1726299491065,-580.66,0.00034027,120]
[338143032,1726299491110,-1882.78369809,0.00034301,120]
[338143033,1726299491151,-1925.58,0.00034301,120]
[338143034,1726299491194,-2524.99209741,0.00034301,120]
[338143035,1726299491238,-2511.67,0.00034301,120]
[338143036,1726299491282,-1600.47,0.00034301,120]
[338143037,1726299491323,-580.87,0.00034301,120]
[338143038,1726299491364,-8000.0,0.00035,30]
[338143039,1726299491406,-248.671848,0.00035616,120]
[338143040,1726299491444,-10000.0,0.000368,30]
[338143041,1726299491487,-1000.0,0.00037,120]
[338143042,1726299491530,-602.85376839,0.00037524,120]
[338143043,1726299491569,-2000.0,0.0003796,30]
[338143044,1726299491607,-219.78373694,0.00038356,120]
[338143045,1726299491646,-1000.0,0.00038356,30]
[338143046,1726299491684,-51399.0,0.000385,30]
[338143047,1726299491722,-1000.0,0.0003863,30]
[338143048,1726299491760,-1000.0,0.00038904,30]
[338143049,1726299491796,-150.0,0.00039,30]
[338143050,1726299491832,-30069.97618989,0.00039178,90]
[338143051,1726299491869,-1000.0,0.00039178,30]
[338143052,1726299491905,-150.0,0.000392,120]
[338143053,1726299491945,-11000.0,0.00039316,120]
[338143054,1726299491986,-519.37435563,0.00039452,30]
[338143055,1726299492025,-204.46368699,0.00039452,30]
[338143056,1726299492067,-200.0,0.0004,120]
[338143057,1726299492105,-211.6023089,0.0004,30]
[338143058,1726299492144,-30237.01358754,0.0004,30]
[338143059,1726299492184,-150.0,0.0004,30]
[338143060,1726299492223,-7500.0,0.0004,30]
[338143061,1726299492263,-563.48304372,0.0004,120]
[338143062,1726299492304,-367.37212683,0.0004,120]
[338143063,1726299492343,-556.19,0.0004,120]
[338143064,1726299492381,-151.0,0.00040027,120]
[338143065,1726299492418,-151.0,0.00040027,120]
[338143066,1726299492457,-410.6245435,0.00041,120]
[338143067,1726299492498,-9234.68085261,0.00041,30]
[338143068,1726299492539,-200.0,0.00041,30]
[338143069,1726299492578,-179.9,0.00041041,31]
[338143070,1726299492617,-1000.0,0.00041095,90]
[338143071,1726299492658,-1014.29832921,0.00041095,90]
[338143072,1726299492696,-500.0,0.00041095,120]
[338143073,1726299492736,-500.0,0.00041095,120]
[338143074,1726299492776,-500.0,0.00041095,120]
[338143075,1726299492816,-500.0,0.00041095,120]
[338143076,1726299492857,-500.0,0.00041095,120]
[338143077,1726299492895,-500.0,0.00041095,120]
[338143078,1726299493052,-500.0,0.00041095,120]
[338143079,1726299493095,-500.0,0.00041095,120]
[338143080,1726299493134,-500.0,0.00041095,120]
[338143081,1726299493174,-500.0,0.00041095,120]
[338143082,1726299493213,-500.0,0.00041095,120]
[338143083,1726299493254,-496.15773422,0.00041095,120]
[338143084,1726299493295,-643.25392784,0.00041095,120]
[338143085,1726299493336,-248.671848,0.00041553,120]
[338143086,1726299493378,-265.0,0.00041918,120]
[338143087,1726299493420,-265.0,0.00041918,120]
[338143088,1726299493462,-265.0,0.00041918,120]
[338143089,1726299493502,-265.0,0.00041918,120]
[338143090,1726299493541,-265.0,0.00041918,120]
[338143091,1726299493582,-265.0,0.00041918,120]
[338143092,1726299493621,-265.0,0.00041918,120]
[338143093,1726299493662,-265.0,0.00041918,120]
[338143094,1726299493702,-265.0,0.00041918,120]
[338143095,1726299493742,-265.0,0.00041918,120]
[338143096,1726299493795,-265.0,0.00041918,120]
[338143097,1726299493836,-265.0,0.00041918,120]
[338143098,1726299493879,-265.0,0.00041918,120]
[338143099,1726299493923,-265.0,0.00041918,120]
[338143100,1726299493966,-265.0,0.00041918,120]
[338143101,1726299494009,-265.0,0.00041918,120]
[338143102,1726299494049,-265.0,0.00041918,120]
[338143103,1726299494094,-265.0,0.00041918,120]
[338143104,1726299494135,-265.0,0.00041918,120]
[338143105,1726299494177,-265.0,0.00041918,120]
[338143106,1726299494220,-265.0,0.00041918,120]
[338143107,1726299494261,-265.0,0.00041918,120]
[338143108,1726299494300,-265.0,0.00041918,120]
[338143109,1726299494339,-265.0,0.00041918,120]
[338143110,1726299494378,-265.0,0.00041918,120]
[338143111,1726299494418,-265.0,0.00041918,120]
[338143112,1726299494459,-265.0,0.00041918,120]
[338143113,1726299494499,-265.0,0.00041918,120]
[338143114,1726299494539,-265.0,0.00041918,120]
[338143115,1726299494578,-265.0,0.00041918,120]
[338143116,1726299494617,-265.0,0.00041918,120]
[338143117,1726299494656,-265.0,0.00041918,120]
[338143118,1726299494696,-265.0,0.00041918,120]